[Event "European Online Club-ch-F 2021"]
[Site "Online"]
[Date "2021.03.27"]
[Round "1.10"]
[White "Isik, Alparslan"]
[Black "Zhigalko, Andrey"]
[Result "1-0"]
[ECO "A09"]
[WhiteElo "2321"]
[BlackElo "2517"]
[Annotator "ChessBase"]
[PlyCount "123"]
[EventDate "2021.03.27"]
[EventType "team-tourn"]
[EventCountry "NET"]
[SourceTitle "playchess.com"]
[Source "ChessBase"]
[SourceQuality "1"]
[TimeControl "900+5"]

1. Nf3 {[%emt 0:00:00]} d5 {[%emt 0:00:46]} 2. c4 {[%emt 0:00:05]} d4 {[%emt 0:00:08]} 3. g3 {[%emt 0:00:56]} Nc6 {[%emt 0:00:02]} 4. Bg2 {[%emt 0:00:03]} e5 {[%emt 0:00:02]} 5. d3 {[%emt 0:00:05]} Nf6 {[%emt 0:00:12]} 6. O-O {[%emt 0:00:03]} a5 {[%emt 0:00:03]} 7. Na3 {[%emt 0:00:03]} Bc5 {[%emt 0:01:47]} 8. Nc2 {[%emt 0:00:15]} O-O {[%emt 0:00:26]} 9. Bg5 {[%emt 0:00:09]} h6 {[%emt 0:00:54]} 10. Bxf6 {[%emt 0:00:03]} Qxf6 {[%emt 0:00:00]} 11. Nd2 {[%emt 0:00:02]} Qe7 {[%emt 0:00:10]} 12. Rb1 {[%emt 0:00:21]} Bd7 {[%emt 0:02:06]} 13. e3 {[%emt 0:00:30]} dxe3 {[%emt 0:00:48]} 14. fxe3 {[%emt 0:00:04]} Nb4 {[%emt 0:00:32]} 15. Bxb7 {[%emt 0:01:52]} Rab8 {[%emt 0:00:31]} 16. Be4 {[%emt 0:00:18]} f5 {[%emt 0:00:37]} 17. Bd5+ {[%emt 0:00:24]} Kh8 {[%emt 0:00:03]} 18. Nf3 {[%emt 0:01:28]} Nxc2 {[%emt 0:01:31]} 19. Qxc2 {[%emt 0:00:03]} Bxe3+ {[%emt 0:00:01]} 20. Kh1 {[%emt 0:00:05]} c6 {[%emt 0:00:45]} 21. Nh4 {[%emt 0:00:04]} Rf6 {[%emt 0:00:12]} 22. Bg2 {[%emt 0:00:28]} Qd6 {[%emt 0:00:41]} 23. Rbe1 {[%emt 0:00:31]} Bd4 {[%emt 0:00:05]} 24. b3 {[%emt 0:00:07]} Re8 {[%emt 0:00:14]} 25. Nf3 {[%emt 0:00:07]} Bb6 {[%emt 0:00:55]} 26. Qc3 {[%emt 0:01:11]} Rfe6 {[%emt 0:00:17]} 27. Re2 {[%emt 0:01:06]} Kh7 {[%emt 0:00:38]} 28. Rfe1 {[%emt 0:01:27]} e4 {[%emt 0:01:49]} 29. Nh4 {[%emt 0:00:08]} Qxd3 {[%emt 0:00:17]} 30. Qc1 {[%emt 0:00:25]} e3 {[%emt 0:00:24]} 31. Bf3 {[%emt 0:00:40]} Qd6 {[%emt 0:00:30]} 32. Rd1 {[%emt 0:00:26]} Qc7 {[%emt 0:00:01]} 33. c5 {[%emt 0:00:15]} Ba7 {[%emt 0:00:03]} 34. Nxf5 {[%emt 0:00:43]} Rf6 {[%emt 0:00:02]} 35. Nd4 {[%emt 0:02:13]} Qe5 {[%emt 0:00:02]} 36. Rd3 {[%emt 0:00:36]} Rxf3 {[%emt 0:00:15]} 37. Nxf3 {[%emt 0:00:02]} Qh5 {[%emt 0:00:10]} 38. Rexe3 {[%emt 0:00:17]} Bf5 {[%emt 0:00:04]} 39. Rxe8 {[%emt 0:00:19]} Bxd3 {[%emt 0:00:02]} 40. Re3 {[%emt 0:00:04]} Be4 {[%emt 0:00:02]} 41. Kg2 {[%emt 0:00:20]} Bd5 {[%emt 0:00:03]} 42. Rc3 {[%emt 0:00:02]} g5 {[%emt 0:00:05]} 43. h3 {[%emt 0:00:04]} g4 {[%emt 0:00:03]} 44. hxg4 {[%emt 0:00:02]} Qxg4 {[%emt 0:00:00]} 45. Qf4 {[%emt 0:00:03]} Qg7 {[%emt 0:00:09]} 46. Qf5+ {[%emt 0:00:08]} Kg8 {[%emt 0:00:11]} 47. Re3 {[%emt 0:00:02]} Bxc5 {[%emt 0:00:06]} 48. Re8+ {[%emt 0:00:03]} Bf8 {[%emt 0:00:01]} 49. g4 {[%emt 0:00:09]} Bf7 {[%emt 0:00:09]} 50. Re2 {[%emt 0:00:09]} Bg6 {[%emt 0:00:08]} 51. Qf4 {[%emt 0:00:04]} Bf7 {[%emt 0:00:05]} 52. Qd4 {[%emt 0:00:07]} Qg6 {[%emt 0:00:05]} 53. Ne5 {[%emt 0:00:03]} Qg7 {[%emt 0:00:06]} 54. Nxc6 {[%emt 0:00:06]} Qg5 {[%emt 0:00:04]} 55. Ne5 {[%emt 0:00:06]} Be6 {[%emt 0:00:05]} 56. Kf3 {[%emt 0:00:07]} Bg7 {[%emt 0:00:02]} 57. Qf4 {[%emt 0:00:02]} Bd5+ {[%emt 0:00:06]} 58. Kg3 {[%emt 0:00:02]} Qe7 {[%emt 0:00:05]} 59. Re3 {[%emt 0:00:03]} Bf6 {[%emt 0:00:06]} 60. Ng6 {[%emt 0:00:03]} Qg7 {[%emt 0:00:05]} 61. Qb8+ {[%emt 0:00:02]} Kf7 {[%emt 0:00:03]} 62. Qe8# {[%emt 0:00:11]} 1-0

[Event "European Online Club-ch-F 2021"]
[Site "Online"]
[Date "2021.03.27"]
[Round "1.11"]
[White "Kazakouski, Valery"]
[Black "Karaoglan, Doruk"]
[Result "1-0"]
[ECO "E63"]
[WhiteElo "2476"]
[BlackElo "2230"]
[Annotator "ChessBase"]
[PlyCount "73"]
[EventDate "2021.03.27"]
[EventType "team-tourn"]
[EventCountry "NET"]
[SourceTitle "playchess.com"]
[Source "ChessBase"]
[SourceQuality "1"]
[TimeControl "900+5"]

1. d4 {[%emt 0:00:00]} Nf6 {[%emt 0:01:06]} 2. Nf3 {[%emt 0:00:21]} g6 {[%emt 0:00:55]} 3. c4 {[%emt 0:00:03]} Bg7 {[%emt 0:00:02]} 4. g3 {[%emt 0:00:02]} d6 {[%emt 0:00:03]} 5. Bg2 {[%emt 0:00:02]} O-O {[%emt 0:00:09]} 6. O-O {[%emt 0:00:02]} Nc6 {[%emt 0:00:45]} 7. Nc3 {[%emt 0:00:05]} a6 {[%emt 0:00:02]} 8. b3 {[%emt 0:00:03]} Rb8 {[%emt 0:00:01]} 9. d5 {[%emt 0:00:30]} Na5 {[%emt 0:00:10]} 10. Bg5 {[%emt 0:00:08]} c5 {[%emt 0:00:54]} 11. dxc6 {[%emt 0:00:09]} bxc6 {[%emt 0:00:55]} 12. c5 {[%emt 0:01:00]} d5 {[%emt 0:01:18]} 13. Bf4 {[%emt 0:00:11]} Rb4 {[%emt 0:00:10]} 14. Be5 {[%emt 0:00:50]} Ne4 {[%emt 0:02:18]} 15. Bxg7 {[%emt 0:01:10]} Kxg7 {[%emt 0:00:04]} 16. Qe1 {[%emt 0:01:24]} Nf6 {[%emt 0:03:05]} 17. Na4 {[%emt 0:00:54]} Rxa4 {[%emt 0:01:29]} 18. bxa4 {[%emt 0:00:07]} Nc4 {[%emt 0:00:01]} 19. Qc3 {[%emt 0:01:54]} Qc7 {[%emt 0:01:21]} 20. Nd4 {[%emt 0:00:36]} Bd7 {[%emt 0:00:41]} 21. e4 {[%emt 0:01:18]} e5 {[%emt 0:00:36]} 22. Nb3 {[%emt 0:00:08]} Be6 {[%emt 0:00:09]} 23. exd5 {[%emt 0:00:12]} cxd5 {[%emt 0:00:02]} 24. Rac1 {[%emt 0:00:18]} Rb8 {[%emt 0:00:22]} 25. Rfe1 {[%emt 0:00:46]} d4 {[%emt 0:00:07]} 26. Qd3 {[%emt 0:00:46]} Rb4 {[%emt 0:00:03]} 27. c6 {[%emt 0:00:48]} Ng4 {[%emt 0:00:15]} 28. Nc5 {[%emt 0:00:25]} Bf5 {[%emt 0:00:02]} 29. Be4 {[%emt 0:00:19]} Nd6 {[%emt 0:00:07]} 30. Bxf5 {[%emt 0:00:06]} gxf5 {[%emt 0:00:03]} 31. Nxa6 {[%emt 0:00:06]} Qb6 {[%emt 0:00:01]} 32. Nxb4 {[%emt 0:00:06]} Qxb4 {[%emt 0:00:02]} 33. c7 {[%emt 0:00:17]} e4 {[%emt 0:00:02]} 34. Qd1 {[%emt 0:00:30]} e3 {[%emt 0:00:25]} 35. fxe3 {[%emt 0:00:12]} dxe3 {[%emt 0:00:02]} 36. Re2 {[%emt 0:01:04]} Nf2 {[%emt 0:00:06]} 37. Qd5 {[%emt 0:00:30]} 1-0

[Event "European Online Club-ch-F 2021"]
[Site "Online"]
[Date "2021.03.27"]
[Round "1.12"]
[White "Apaydin, Fethi"]
[Black "Meribanov, Vitaly"]
[Result "0-1"]
[ECO "B25"]
[WhiteElo "2260"]
[BlackElo "2406"]
[Annotator "NA"]
[PlyCount "110"]
[EventDate "2021.03.27"]
[EventType "team-tourn"]
[EventCountry "NET"]
[SourceTitle "playchess.com"]
[Source "ChessBase"]
[SourceQuality "1"]
[TimeControl "900+5"]

1. e4 {[%emt 0:00:01]} c5 {[%emt 0:00:04]} 2. Nc3 {[%emt 0:00:13]} Nc6 {[%emt 0:00:04]} 3. g3 {[%emt 0:00:06]} g6 {[%emt 0:00:02]} 4. Bg2 {[%emt 0:00:03]} Bg7 {[%emt 0:00:05]} 5. d3 {[%emt 0:00:03]} d6 {[%emt 0:00:04]} 6. f4 {[%emt 0:00:03]} e6 {[%emt 0:00:02]} 7. Nf3 {[%emt 0:00:03]} Nge7 {[%emt 0:00:02]} 8. O-O {[%emt 0:00:01]} O-O {[%emt 0:00:03]} 9. Be3 {[%emt 0:00:02]} Nd4 {[%emt 0:00:02]} 10. Rb1 {[%emt 0:00:20]} Rb8 {[%emt 0:00:06]} 11. Ne2 {[%emt 0:00:07]} Nxf3+ {[%emt 0:00:02]} 12. Bxf3 {[%emt 0:00:02]} b6 {[%emt 0:00:04]} 13. g4 {[%emt 0:00:36]} f5 {[%emt 0:00:07]} 14. Ng3 {[%emt 0:00:04]} Bb7 {[%emt 0:01:24]} 15. c3 {[%emt 0:00:55]} d5 {[%emt 0:01:17]} 16. exf5 {[%emt 0:00:50]} exf5 {[%emt 0:00:17]} 17. d4 {[%emt 0:00:09]} Qd6 {[%emt 0:00:28]} 18. Qd2 {[%emt 0:02:38]} Rbd8 {[%emt 0:00:05]} 19. Rbd1 {[%emt 0:00:48]} fxg4 {[%emt 0:00:17]} 20. Bxg4 {[%emt 0:00:10]} Bc8 {[%emt 0:00:02]} 21. dxc5 {[%emt 0:02:30]} bxc5 {[%emt 0:00:12]} 22. Bxc8 {[%emt 0:00:14]} Rxc8 {[%emt 0:00:03]} 23. Qg2 {[%emt 0:02:43]} Qc6 {[%emt 0:03:35]} 24. f5 {[%emt 0:00:41]} d4 {[%emt 0:01:53]} 25. Qxc6 {[%emt 0:00:11]} Nxc6 {[%emt 0:01:21]} 26. Bg5 {[%emt 0:00:46]} Bf6 {[%emt 0:02:14]} 27. Bxf6 {[%emt 0:01:12]} Rxf6 {[%emt 0:00:03]} 28. Ne4 {[%emt 0:00:52]} Rxf5 {[%emt 0:00:14]} 29. Rxf5 {[%emt 0:00:02]} gxf5 {[%emt 0:00:02]} 30. Nxc5 {[%emt 0:00:01]} dxc3 {[%emt 0:00:11]} 31. bxc3 {[%emt 0:00:02]} Ne7 {[%emt 0:00:31]} 32. Rd7 {[%emt 0:00:30]} Kf7 {[%emt 0:00:28]} 33. Nb3 {[%emt 0:00:12]} Rxc3 {[%emt 0:00:32]} 34. Rxa7 {[%emt 0:00:18]} Kf6 {[%emt 0:00:03]} 35. Nd4 {[%emt 0:00:06]} Rd3 {[%emt 0:00:21]} 36. Ne2 {[%emt 0:00:10]} Rd2 {[%emt 0:00:24]} 37. Kf2 {[%emt 0:00:02]} Nd5 {[%emt 0:00:09]} 38. Kf3 {[%emt 0:00:01]} Rd3+ {[%emt 0:00:22]} 39. Kf2 {[%emt 0:00:01]} h5 {[%emt 0:00:05]} 40. Ra6+ {[%emt 0:00:05]} Kg5 {[%emt 0:00:13]} 41. Rd6 {[%emt 0:00:03]} f4 {[%emt 0:00:23]} 42. a4 {[%emt 0:00:02]} Kf5 {[%emt 0:00:16]} 43. Nc3 {[%emt 0:00:15]} Rxc3 {[%emt 0:00:14]} 44. Rxd5+ {[%emt 0:00:01]} Kg4 {[%emt 0:00:02]} 45. h3+ {[%emt 0:00:05]} Rxh3 {[%emt 0:00:06]} 46. Rd8 {[%emt 0:00:02]} Rh2+ {[%emt 0:00:03]} 47. Kg1 {[%emt 0:00:03]} Ra2 {[%emt 0:00:02]} 48. Rd4 {[%emt 0:00:09]} Kg3 {[%emt 0:00:04]} 49. Rd3+ {[%emt 0:00:18]} f3 {[%emt 0:00:01]} 50. Rd1 {[%emt 0:00:02]} Rxa4 {[%emt 0:00:04]} 51. Rb1 {[%emt 0:00:01]} Ra2 {[%emt 0:00:03]} 52. Rc1 {[%emt 0:00:02]} Rg2+ {[%emt 0:00:03]} 53. Kh1 {[%emt 0:00:04]} Rh2+ {[%emt 0:00:02]} 54. Kg1 {[%emt 0:00:01]} f2+ {[%emt 0:00:01]} 55. Kf1 {[%emt 0:00:01]} Rh1+ {[%emt 0:00:02]} 0-1

[Event "European Online Club-ch-F 2021"]
[Site "Online"]
[Date "2021.03.27"]
[Round "1.13"]
[White "Pechac, Jergus"]
[Black "Sochacki, Christophe"]
[Result "1-0"]
[ECO "A57"]
[WhiteElo "2507"]
[BlackElo "2477"]
[Annotator "ChessBase"]
[PlyCount "67"]
[EventDate "2021.03.27"]
[EventType "team-tourn"]
[EventCountry "NET"]
[SourceTitle "playchess.com"]
[Source "ChessBase"]
[SourceQuality "1"]
[TimeControl "900+5"]

1. d4 {[%emt 0:00:00]} Nf6 {[%emt 0:00:14]} 2. c4 {[%emt 0:00:04]} c5 {[%emt 0:00:12]} 3. d5 {[%emt 0:00:03]} b5 {[%emt 0:00:04]} 4. cxb5 {[%emt 0:00:03]} a6 {[%emt 0:00:16]} 5. e3 {[%emt 0:00:04]} Bb7 {[%emt 0:01:43]} 6. Nc3 {[%emt 0:00:08]} e6 {[%emt 0:00:02]} 7. dxe6 {[%emt 0:00:41]} fxe6 {[%emt 0:00:06]} 8. Nf3 {[%emt 0:00:24]} d5 {[%emt 0:00:15]} 9. Be2 {[%emt 0:01:57]} Bd6 {[%emt 0:00:09]} 10. b3 {[%emt 0:02:09]} O-O {[%emt 0:01:48]} 11. Bb2 {[%emt 0:00:09]} e5 {[%emt 0:00:58]} 12. bxa6 {[%emt 0:00:14]} Nxa6 {[%emt 0:00:08]} 13. Nb5 {[%emt 0:00:16]} Bb8 {[%emt 0:04:41]} 14. Nxe5 {[%emt 0:00:40]} Ne4 {[%emt 0:00:02]} 15. O-O {[%emt 0:00:28]} Nxf2 {[%emt 0:00:53]} 16. Qc2 {[%emt 0:03:10]} Qh4 {[%emt 0:01:21]} 17. Bf3 {[%emt 0:01:10]} d4 {[%emt 0:01:09]} 18. Qxf2 {[%emt 0:01:15]} Qxf2+ {[%emt 0:00:10]} 19. Rxf2 {[%emt 0:00:05]} Bxe5 {[%emt 0:00:22]} 20. Bxb7 {[%emt 0:00:22]} Rxf2 {[%emt 0:00:12]} 21. Kxf2 {[%emt 0:00:14]} dxe3+ {[%emt 0:00:01]} 22. Ke2 {[%emt 0:00:51]} Bxb2 {[%emt 0:00:03]} 23. Rb1 {[%emt 0:00:09]} Rf8 {[%emt 0:00:07]} 24. Bxa6 {[%emt 0:00:06]} Rf6 {[%emt 0:00:13]} 25. Kxe3 {[%emt 0:00:46]} Bd4+ {[%emt 0:00:07]} 26. Nxd4 {[%emt 0:00:02]} cxd4+ {[%emt 0:00:01]} 27. Kxd4 {[%emt 0:00:00]} Rxa6 {[%emt 0:00:01]} 28. a4 {[%emt 0:00:06]} Kf7 {[%emt 0:00:05]} 29. Ra1 {[%emt 0:00:08]} Ke6 {[%emt 0:00:04]} 30. b4 {[%emt 0:00:07]} Kd6 {[%emt 0:00:03]} 31. b5 {[%emt 0:00:09]} Ra5 {[%emt 0:00:11]} 32. Kc4 {[%emt 0:00:06]} Ra8 {[%emt 0:00:01]} 33. a5 {[%emt 0:00:08]} Rf8 {[%emt 0:00:03]} 34. a6 {[%emt 0:00:07]} 1-0

[Event "European Online Club-ch-F 2021"]
[Site "Online"]
[Date "2021.03.27"]
[Round "1.15"]
[White "Zwardon, Vojtech"]
[Black "Eden, James"]
[Result "1-0"]
[ECO "A25"]
[WhiteElo "2466"]
[BlackElo "2294"]
[Annotator "ChessBase"]
[PlyCount "59"]
[EventDate "2021.03.27"]
[EventType "team-tourn"]
[EventCountry "NET"]
[SourceTitle "playchess.com"]
[Source "ChessBase"]
[SourceQuality "1"]
[TimeControl "900+5"]

1. c4 {[%emt 0:00:00]} e5 {[%emt 0:00:23]} 2. g3 {[%emt 0:00:04]} Nc6 {[%emt 0:00:12]} 3. Bg2 {[%emt 0:00:01]} Bc5 {[%emt 0:00:03]} 4. Nc3 {[%emt 0:00:05]} d6 {[%emt 0:00:05]} 5. Nf3 {[%emt 0:00:04]} a6 {[%emt 0:00:04]} 6. e3 {[%emt 0:00:02]} Nf6 {[%emt 0:01:46]} 7. d4 {[%emt 0:00:03]} Ba7 {[%emt 0:00:05]} 8. dxe5 {[%emt 0:00:02]} Nxe5 {[%emt 0:00:04]} 9. Nxe5 {[%emt 0:00:02]} dxe5 {[%emt 0:00:01]} 10. Qxd8+ {[%emt 0:00:01]} Kxd8 {[%emt 0:00:01]} 11. b3 {[%emt 0:00:01]} c6 {[%emt 0:00:12]} 12. Ba3 {[%emt 0:00:03]} Be6 {[%emt 0:00:25]} 13. Rd1+ {[%emt 0:00:05]} Nd7 {[%emt 0:00:06]} 14. Ne4 {[%emt 0:00:13]} f6 {[%emt 0:00:13]} 15. O-O {[%emt 0:00:07]} Kc7 {[%emt 0:00:22]} 16. Bd6+ {[%emt 0:00:03]} Kc8 {[%emt 0:00:10]} 17. Rd2 {[%emt 0:00:05]} Bf5 {[%emt 0:00:32]} 18. Rfd1 {[%emt 0:00:03]} Bg4 {[%emt 0:01:25]} 19. Rc1 {[%emt 0:00:16]} Bf5 {[%emt 0:00:07]} 20. Ba3 {[%emt 0:00:17]} Bxe4 {[%emt 0:00:24]} 21. Bxe4 {[%emt 0:00:04]} g6 {[%emt 0:02:21]} 22. Rcd1 {[%emt 0:00:13]} Nc5 {[%emt 0:00:02]} 23. Bxc5 {[%emt 0:00:02]} Bxc5 {[%emt 0:00:02]} 24. Rd7 {[%emt 0:00:00]} a5 {[%emt 0:00:09]} 25. Bg2 {[%emt 0:00:26]} a4 {[%emt 0:00:07]} 26. Rf7 {[%emt 0:00:20]} Rd8 {[%emt 0:00:52]} 27. Rxd8+ {[%emt 0:00:03]} Kxd8 {[%emt 0:00:01]} 28. Rxh7 {[%emt 0:00:07]} axb3 {[%emt 0:00:03]} 29. Rh8+ {[%emt 0:00:05]} Kc7 {[%emt 0:00:08]} 30. Rxa8 {[%emt 0:00:00]} 1-0

[Event "European Online Club-ch-F 2021"]
[Site "Online"]
[Date "2021.03.27"]
[Round "1.16"]
[White "Maatoug, Redwan"]
[Black "Druska, Juraj"]
[Result "1/2-1/2"]
[ECO "B38"]
[WhiteElo "2202"]
[BlackElo "2495"]
[Annotator "ChessBase"]
[PlyCount "78"]
[EventDate "2021.03.27"]
[EventType "team-tourn"]
[EventCountry "NET"]
[SourceTitle "playchess.com"]
[Source "ChessBase"]
[SourceQuality "1"]
[TimeControl "900+5"]

1. e4 {[%emt 0:00:05]} c5 {[%emt 0:00:34]} 2. Nf3 {[%emt 0:00:04]} Nc6 {[%emt 0:00:02]} 3. d4 {[%emt 0:00:03]} cxd4 {[%emt 0:00:01]} 4. Nxd4 {[%emt 0:00:01]} g6 {[%emt 0:00:02]} 5. c4 {[%emt 0:00:35]} Nf6 {[%emt 0:00:25]} 6. Nc3 {[%emt 0:00:04]} d6 {[%emt 0:00:01]} 7. Be2 {[%emt 0:00:09]} Bg7 {[%emt 0:00:02]} 8. Be3 {[%emt 0:00:08]} O-O {[%emt 0:00:15]} 9. O-O {[%emt 0:00:05]} Bd7 {[%emt 0:00:10]} 10. f3 {[%emt 0:00:13]} Nxd4 {[%emt 0:00:05]} 11. Bxd4 {[%emt 0:00:03]} a5 {[%emt 0:00:10]} 12. Qd2 {[%emt 0:00:15]} Bc6 {[%emt 0:00:04]} 13. Rfd1 {[%emt 0:00:12]} Nd7 {[%emt 0:00:04]} 14. Bxg7 {[%emt 0:00:42]} Kxg7 {[%emt 0:00:00]} 15. Qd4+ {[%emt 0:00:02]} Kg8 {[%emt 0:00:05]} 16. Nd5 {[%emt 0:00:38]} Bxd5 {[%emt 0:00:58]} 17. exd5 {[%emt 0:00:05]} Qb6 {[%emt 0:00:11]} 18. Qxb6 {[%emt 0:00:41]} Nxb6 {[%emt 0:00:00]} 19. b3 {[%emt 0:00:03]} Rfc8 {[%emt 0:00:11]} 20. Kf2 {[%emt 0:00:01]} a4 {[%emt 0:01:28]} 21. Ke3 {[%emt 0:00:19]} Ra7 {[%emt 0:00:31]} 22. Kd4 {[%emt 0:00:38]} axb3 {[%emt 0:00:05]} 23. axb3 {[%emt 0:00:03]} Rca8 {[%emt 0:00:01]} 24. Rxa7 {[%emt 0:00:35]} Rxa7 {[%emt 0:00:00]} 25. Kc3 {[%emt 0:00:29]} Kg7 {[%emt 0:01:15]} 26. Bd3 {[%emt 0:00:54]} Kf6 {[%emt 0:01:26]} 27. Bc2 {[%emt 0:00:20]} Ra2 {[%emt 0:02:37]} 28. Re1 {[%emt 0:00:16]} h5 {[%emt 0:00:57]} 29. g4 {[%emt 0:01:27]} e5 {[%emt 0:02:07]} 30. dxe6 {[%emt 0:00:43]} fxe6 {[%emt 0:00:03]} 31. gxh5 {[%emt 0:00:16]} gxh5 {[%emt 0:00:00]} 32. Rg1 {[%emt 0:00:05]} Nd7 {[%emt 0:00:10]} 33. Rg6+ {[%emt 0:00:20]} Kf7 {[%emt 0:00:03]} 34. Rh6 {[%emt 0:00:09]} Nf6 {[%emt 0:00:07]} 35. Rh8 {[%emt 0:00:36]} Ra7 {[%emt 0:00:51]} 36. Rb8 {[%emt 0:01:16]} Nd7 {[%emt 0:00:20]} 37. Rh8 {[%emt 0:00:06]} Nf6 {[%emt 0:00:02]} 38. Rb8 {[%emt 0:00:03]} Nd7 {[%emt 0:00:01]} 39. Rh8 {[%emt 0:00:04]} Nf6 {[%emt 0:00:02]} 1/2-1/2

[Event "European Online Club-ch-F 2021"]
[Site "Online"]
[Date "2021.03.27"]
[Round "1.17"]
[White "Gokerkan, Cem Kaan"]
[Black "Hellers, Ferdinand"]
[Result "0-1"]
[ECO "B03"]
[WhiteElo "2470"]
[BlackElo "2592"]
[Annotator "ChessBase"]
[PlyCount "148"]
[EventDate "2021.03.27"]
[EventType "team-tourn"]
[EventCountry "NET"]
[SourceTitle "playchess.com"]
[Source "ChessBase"]
[SourceQuality "1"]
[TimeControl "900+5"]

1. e4 {[%emt 0:00:00]} Nf6 {[%emt 0:00:21]} 2. e5 {[%emt 0:00:02]} Nd5 {[%emt 0:00:05]} 3. d4 {[%emt 0:00:04]} d6 {[%emt 0:00:03]} 4. c4 {[%emt 0:00:02]} Nb6 {[%emt 0:00:02]} 5. f4 {[%emt 0:00:01]} dxe5 {[%emt 0:00:07]} 6. fxe5 {[%emt 0:00:02]} Nc6 {[%emt 0:00:03]} 7. Be3 {[%emt 0:00:23]} Bf5 {[%emt 0:00:04]} 8. Nc3 {[%emt 0:00:02]} e6 {[%emt 0:00:02]} 9. Nf3 {[%emt 0:00:16]} Be7 {[%emt 0:00:02]} 10. Be2 {[%emt 0:00:02]} O-O {[%emt 0:00:03]} 11. O-O {[%emt 0:00:38]} f6 {[%emt 0:00:05]} 12. exf6 {[%emt 0:00:18]} Bxf6 {[%emt 0:00:03]} 13. b3 {[%emt 0:00:29]} Qe7 {[%emt 0:00:22]} 14. Qd2 {[%emt 0:03:21]} Rad8 {[%emt 0:00:16]} 15. Rad1 {[%emt 0:00:03]} Kh8 {[%emt 0:00:16]} 16. h3 {[%emt 0:00:13]} h6 {[%emt 0:00:27]} 17. Kh1 {[%emt 0:00:21]} Rd7 {[%emt 0:00:27]} 18. Qe1 {[%emt 0:06:24]} Rfd8 {[%emt 0:00:20]} 19. Qf2 {[%emt 0:00:26]} Qb4 {[%emt 0:01:05]} 20. Nb5 {[%emt 0:01:53]} a6 {[%emt 0:01:27]} 21. c5 {[%emt 0:00:05]} axb5 {[%emt 0:00:14]} 22. cxb6 {[%emt 0:00:05]} cxb6 {[%emt 0:00:10]} 23. Rd2 {[%emt 0:01:07]} Rd5 {[%emt 0:02:08]} 24. Rfd1 {[%emt 0:00:03]} Be4 {[%emt 0:00:52]} 25. Qg3 {[%emt 0:00:13]} Nxd4 {[%emt 0:02:37]} 26. Bxd4 {[%emt 0:00:27]} Bxd4 {[%emt 0:00:05]} 27. Qf4 {[%emt 0:00:08]} Bc3 {[%emt 0:00:22]} 28. Rxd5 {[%emt 0:00:06]} exd5 {[%emt 0:00:08]} 29. Qh4 {[%emt 0:00:06]} Bf6 {[%emt 0:00:08]} 30. Qg3 {[%emt 0:00:01]} Qc5 {[%emt 0:00:52]} 31. Ne5 {[%emt 0:00:06]} Bxe5 {[%emt 0:00:20]} 32. Qxe5 {[%emt 0:00:01]} Qf2 {[%emt 0:00:51]} 33. Bf1 {[%emt 0:00:02]} Rc8 {[%emt 0:00:21]} 34. Qd4 {[%emt 0:00:08]} Qxd4 {[%emt 0:01:35]} 35. Rxd4 {[%emt 0:00:01]} Rc1 {[%emt 0:00:01]} 36. Kg1 {[%emt 0:00:01]} Ra1 {[%emt 0:00:04]} 37. a4 {[%emt 0:00:01]} bxa4 {[%emt 0:00:10]} 38. bxa4 {[%emt 0:00:01]} Rb1 {[%emt 0:00:22]} 39. Kf2 {[%emt 0:00:03]} Kg8 {[%emt 0:00:10]} 40. g4 {[%emt 0:00:25]} Kf8 {[%emt 0:00:11]} 41. Bb5 {[%emt 0:00:03]} Ke7 {[%emt 0:00:08]} 42. Rd2 {[%emt 0:00:08]} Rb3 {[%emt 0:00:08]} 43. h4 {[%emt 0:00:07]} Kd6 {[%emt 0:00:08]} 44. Rd1 {[%emt 0:00:01]} Rc3 {[%emt 0:00:12]} 45. Re1 {[%emt 0:00:10]} Ke5 {[%emt 0:00:03]} 46. Rg1 {[%emt 0:00:04]} Kf4 {[%emt 0:00:03]} 47. Ke2 {[%emt 0:00:03]} Rc2+ {[%emt 0:00:09]} 48. Kd1 {[%emt 0:00:01]} Rb2 {[%emt 0:00:06]} 49. Rf1+ {[%emt 0:00:02]} Ke3 {[%emt 0:00:05]} 50. Re1+ {[%emt 0:00:05]} Kf2 {[%emt 0:00:04]} 51. Rf1+ {[%emt 0:00:02]} Ke3 {[%emt 0:00:08]} 52. Re1+ {[%emt 0:00:01]} Kd4 {[%emt 0:00:01]} 53. Rf1 {[%emt 0:00:08]} Rb1+ {[%emt 0:00:04]} 54. Kd2 {[%emt 0:00:01]} Rxf1 {[%emt 0:00:05]} 55. Bxf1 {[%emt 0:00:02]} g5 {[%emt 0:00:05]} 56. hxg5 {[%emt 0:00:03]} hxg5 {[%emt 0:00:01]} 57. Bb5 {[%emt 0:00:02]} Bf3 {[%emt 0:00:04]} 58. Bd7 {[%emt 0:00:02]} Ke5 {[%emt 0:00:06]} 59. Ke3 {[%emt 0:00:01]} Be4 {[%emt 0:00:02]} 60. Bc8 {[%emt 0:00:06]} d4+ {[%emt 0:00:01]} 61. Kd2 {[%emt 0:00:00]} Kf4 {[%emt 0:00:01]} 62. Bd7 {[%emt 0:00:04]} Bc6 {[%emt 0:00:06]} 63. Bc8 {[%emt 0:00:05]} Bxa4 {[%emt 0:00:02]} 64. Kd3 {[%emt 0:00:01]} Ke5 {[%emt 0:00:04]} 65. Bxb7 {[%emt 0:00:01]} Bb5+ {[%emt 0:00:01]} 66. Kd2 {[%emt 0:00:01]} Kf4 {[%emt 0:00:02]} 67. Bc8 {[%emt 0:00:01]} Bc4 {[%emt 0:00:03]} 68. Bd7 {[%emt 0:00:03]} b5 {[%emt 0:00:01]} 69. Bc8 {[%emt 0:00:02]} b4 {[%emt 0:00:02]} 70. Bd7 {[%emt 0:00:02]} b3 {[%emt 0:00:04]} 71. Bc8 {[%emt 0:00:07]} Bd5 {[%emt 0:00:03]} 72. Bd7 {[%emt 0:00:03]} Be4 {[%emt 0:00:07]} 73. Kc1 {[%emt 0:00:06]} d3 {[%emt 0:00:07]} 74. Ba4 {[%emt 0:00:09]} d2+ {[%emt 0:00:07]} 0-1